Workbook

Sheet Produktionsanlæg
A1: Produktionsanlæg | B1: Enhed | C1: Standard-levetid | D1: Samlet mængde per 31/12-2014 | E1: Samlet mængde per 31/12-2015 | F1: Bemærk-ninger
A3: Renseanlæg 1
A4: Mindre renseanlæg
A5: Mindre renseanlæg < 5.000 PE uden mulighed for opdeling | B5: PE | C5: 40 | E5: 0
A6: Renseanlæg >= 5.000 PE, Vandbehandling
A7: Indløb med riste, Konstruktioner | B7: PE | C7: 60 | E7: 28884 | F7: Hedensted
A8: Indløb med riste, Mek/EL | B8: PE | C8: 20 | E8: 28884
A9: Indløb med riste, SRO | B9: PE | C9: 10 | E9: 28884
A10: Sand- og fedtfang, Kontruktioner | B10: PE | C10: 60 | E10: 28884
A11: Sand- og fedtfang, Mek/EL | B11: PE | C11: 20 | E11: 28884
A12: Sand- og fedtfang, SRO | B12: PE | C12: 10 | E12: 28884
A13: Forklaring, Konstruktioner | B13: PE | C13: 60 | E13: 0
A14: Forklaring, Mek/EL | B14: PE | C14: 20 | E14: 0
A15: Forklaring, SRO | B15: PE | C15: 10 | E15: 0
A16: Beluftningstanke, Konstruktioner | B16: PE | C16: 60 | E16: 28884
A17: Beluftningstanke, Mek/EL | B17: PE | C17: 20 | E17: 28884
A18: Beluftningstanke, SRO | B18: PE | C18: 10 | E18: 28884
A19: Efterklaringstanke, Konstruktioner | B19: PE | C19: 60 | E19: 28884
A20: Efterklaringstanke, Mek/El | B20: PE | C20: 20 | E20: 28884
A21: Efterklaringstanke, SRO | B21: PE | C21: 10 | E21: 28884
A22: Efterbehandlingsanlæg (sandfilter), Konstruktioner | B22: PE | C22: 60 | E22: 0
A23: Efterbehandlingsanlæg (sandfilter), Mek/EL | B23: PE | C23: 20 | E23: 0
A24: Efterbehandlingsanlæg (sandfilter), SRO | B24: PE | C24: 10 | E24: 0
A25: Renseanlæg >= 5.000 PE, Slambehandling
A26: Forafvanding, slam, Konstruktion | B26: PE | C26: 60 | E26: 0
A27: Forafvanding, slam, Mek/EL | B27: PE | C27: 20 | E27: 0
A28: Forafvanding, slam, SRO | B28: PE | C28: 10 | E28: 0
A29: Rådnetanke, slam, Konstruktioner | B29: PE | C29: 60 | E29: 0
A30: Rådnetanke, slam, Mek/EL | B30: PE | C30: 20 | E30: 0
A31: Rådnetanke, slam, SRO | B31: PE | C31: 10 | E31: 0
A32: Gasdisponering, Konstruktioner | B32: PE | C32: 60 | E32: 0
A33: Gasdisponering, Mek/EL | B33: PE | C33: 20 | E33: 0
A34: Gasdisponering, SRO | B34: PE | C34: 10 | E34: 0
A35: Gasdisponering - elproduktionsanlæg, Konstruktioner | B35: PE | C35: 60 | E35: 0
A36: Gasdisponering - elproduktionsanlæg, Mek/EL | B36: PE | C36: 20 | E36: 0
A37: Gasdisponering - elproduktionsanlæg, SRO | B37: PE | C37: 10 | E37: 0
A38: Slutafvanding, slam - lavteknologisk (slambede), Konstruktioner | B38: PE | C38: 60 | E38: 0
A39: Slutafvanding, slam - lavteknologisk (slambede), Mek/EL | B39: PE | C39: 20 | E39: 0
A40: Slutafvanding, slam - lavteknologisk (slambede), SRO | B40: PE | C40: 10 | E40: 0
A41: Slutafvanding, slam - højteknologisk (centrifuger), Konstruktioner | B41: PE | C41: 60 | E41: 28884
A42: Slutafvanding, slam - højteknologisk (centrifuger), Mek/El | B42: PE | C42: 20 | E42: 28884
A43: Slutafvanding, slam - højteknologisk (centrifuger), SRO | B43: PE | C43: 10 | E43: 28884
A44: Renseanlæg >= 5.000 PE, Slamdisponering
A45: Slutdisponering, slam - lavteknologisk (slammineralisering), Konstruktioner | B45: PE | C45: 60 | E45: 0
A46: Slutdisponering, slam - lavteknologisk (slammineralisering), Mek/EL | B46: PE | C46: 20 | E46: 0
A47: Slutdisponering, slam - lavteknologisk (slammineralisering), SRO | B47: PE | C47: 10 | E47: 0
A48: Slutdisponering, slam - højteknologisk (slamtørring), Konstruktioner | B48: PE | C48: 60 | E48: 0
A49: Slutdisponering, slam - højteknologisk (slamtørring), Mek/EL | B49: PE | C49: 20 | E49: 0
A50: Slutdisponering, slam - højteknologisk (slamtørring), SRO | B50: PE | C50: 10 | E50: 0
A51: Slutdisponering, slam - højteknologisk (slamtørring og -forbrænding), Konstruktioner | B51: PE | C51: 60 | E51: 0
A52: Slutdisponering, slam - højteknologisk (slamtørring og -forbrænding), Mek/EL | B52: PE | C52: 20 | E52: 0
A53: Slutdisponering, slam - højteknologisk (slamtørring og -forbrænding), SRO | B53: PE | C53: 10 | E53: 0
A54: Renseanlæg 2
A55: Mindre renseanlæg
A56: Mindre renseanlæg < 5.000 PE uden mulighed for opdeling | B56: PE | C56: 40 | E56: 0
A57: Renseanlæg >= 5.000 PE, Vandbehandling
A58: Indløb med riste, Konstruktioner | B58: PE | C58: 60 | E58: 29749 | F58: Juelsminde
A59: Indløb med riste, Mek/EL | B59: PE | C59: 20 | E59: 29749
A60: Indløb med riste, SRO | B60: PE | C60: 10 | E60: 29749
A61: Sand- og fedtfang, Kontruktioner | B61: PE | C61: 60 | E61: 29749
A62: Sand- og fedtfang, Mek/EL | B62: PE | C62: 20 | E62: 29749
A63: Sand- og fedtfang, SRO | B63: PE | C63: 10 | E63: 29749
A64: Forklaring, Konstruktioner | B64: PE | C64: 60 | E64: 0
A65: Forklaring, Mek/EL | B65: PE | C65: 20 | E65: 0
A66: Forklaring, SRO | B66: PE | C66: 10 | E66: 0
A67: Beluftningstanke, Konstruktioner | B67: PE | C67: 60 | E67: 29749
A68: Beluftningstanke, Mek/EL | B68: PE | C68: 20 | E68: 29749
A69: Beluftningstanke, SRO | B69: PE | C69: 10 | E69: 29749
A70: Efterklaringstanke, Konstruktioner | B70: PE | C70: 60 | E70: 29749
A71: Efterklaringstanke, Mek/El | B71: PE | C71: 20 | E71: 29749
A72: Efterklaringstanke, SRO | B72: PE | C72: 10 | E72: 29749
A73: Efterbehandlingsanlæg (sandfilter), Konstruktioner | B73: PE | C73: 60 | E73: 0
A74: Efterbehandlingsanlæg (sandfilter), Mek/EL | B74: PE | C74: 20 | E74: 0
A75: Efterbehandlingsanlæg (sandfilter), SRO | B75: PE | C75: 10 | E75: 0
A76: Renseanlæg >= 5.000 PE, Slambehandling
A77: Forafvanding, slam, Konstruktion | B77: PE | C77: 60 | E77: 0
A78: Forafvanding, slam, Mek/EL | B78: PE | C78: 20 | E78: 0
A79: Forafvanding, slam, SRO | B79: PE | C79: 10 | E79: 0
A80: Rådnetanke, slam, Konstruktioner | B80: PE | C80: 60 | E80: 0
A81: Rådnetanke, slam, Mek/EL | B81: PE | C81: 20 | E81: 0
A82: Rådnetanke, slam, SRO | B82: PE | C82: 10 | E82: 0
A83: Gasdisponering, Konstruktioner | B83: PE | C83: 60 | E83: 0
A84: Gasdisponering, Mek/EL | B84: PE | C84: 20 | E84: 0
A85: Gasdisponering, SRO | B85: PE | C85: 10 | E85: 0
A86: Gasdisponering - elproduktionsanlæg, Konstruktioner | B86: PE | C86: 60 | E86: 0
A87: Gasdisponering - elproduktionsanlæg, Mek/EL | B87: PE | C87: 20 | E87: 0
A88: Gasdisponering - elproduktionsanlæg, SRO | B88: PE | C88: 10 | E88: 0
A89: Slutafvanding, slam - lavteknologisk (slambede), Konstruktioner | B89: PE | C89: 60 | E89: 0
A90: Slutafvanding, slam - lavteknologisk (slambede), Mek/EL | B90: PE | C90: 20 | E90: 0
A91: Slutafvanding, slam - lavteknologisk (slambede), SRO | B91: PE | C91: 10 | E91: 0
A92: Slutafvanding, slam - højteknologisk (centrifuger), Konstruktioner | B92: PE | C92: 60 | E92: 29749
A93: Slutafvanding, slam - højteknologisk (centrifuger), Mek/El | B93: PE | C93: 20 | E93: 29749
A94: Slutafvanding, slam - højteknologisk (centrifuger), SRO | B94: PE | C94: 10 | E94: 29749
A95: Renseanlæg >= 5.000 PE, Slamdisponering
A96: Slutdisponering, slam - lavteknologisk (slammineralisering), Konstruktioner | B96: PE | C96: 60 | E96: 0
A97: Slutdisponering, slam - lavteknologisk (slammineralisering), Mek/EL | B97: PE | C97: 20 | E97: 0
A98: Slutdisponering, slam - lavteknologisk (slammineralisering), SRO | B98: PE | C98: 10 | E98: 0
A99: Slutdisponering, slam - højteknologisk (slamtørring), Konstruktioner | B99: PE | C99: 60 | E99: 0
A100: Slutdisponering, slam - højteknologisk (slamtørring), Mek/EL | B100: PE | C100: 20 | E100: 0
A101: Slutdisponering, slam - højteknologisk (slamtørring), SRO | B101: PE | C101: 10 | E101: 0
A102: Slutdisponering, slam - højteknologisk (slamtørring og -forbrænding), Konstruktioner | B102: PE | C102: 60 | E102: 0
A103: Slutdisponering, slam - højteknologisk (slamtørring og -forbrænding), Mek/EL | B103: PE | C103: 20 | E103: 0
A104: Slutdisponering, slam - højteknologisk (slamtørring og -forbrænding), SRO | B104: PE | C104: 10 | E104: 0
A105: Renseanlæg 3
A106: Mindre renseanlæg
A107: Mindre renseanlæg < 5.000 PE uden mulighed for opdeling | B107: PE | C107: 40 | E107: 270
A108: Renseanlæg >= 5.000 PE, Vandbehandling
A109: Indløb med riste, Konstruktioner | B109: PE | C109: 60 | E109: 0
A110: Indløb med riste, Mek/EL | B110: PE | C110: 20 | E110: 0
A111: Indløb med riste, SRO | B111: PE | C111: 10 | E111: 0
A112: Sand- og fedtfang, Kontruktioner | B112: PE | C112: 60 | E112: 0
A113: Sand- og fedtfang, Mek/EL | B113: PE | C113: 20 | E113: 0
A114: Sand- og fedtfang, SRO | B114: PE | C114: 10 | E114: 0
A115: Forklaring, Konstruktioner | B115: PE | C115: 60 | E115: 0
A116: Forklaring, Mek/EL | B116: PE | C116: 20 | E116: 0
A117: Forklaring, SRO | B117: PE | C117: 10 | E117: 0
A118: Beluftningstanke, Konstruktioner | B118: PE | C118: 60 | E118: 0
A119: Beluftningstanke, Mek/EL | B119: PE | C119: 20 | E119: 0
A120: Beluftningstanke, SRO | B120: PE | C120: 10 | E120: 0
A121: Efterklaringstanke, Konstruktioner | B121: PE | C121: 60 | E121: 0
A122: Efterklaringstanke, Mek/El | B122: PE | C122: 20 | E122: 0
A123: Efterklaringstanke, SRO | B123: PE | C123: 10 | E123: 0
A124: Efterbehandlingsanlæg (sandfilter), Konstruktioner | B124: PE | C124: 60 | E124: 0
A125: Efterbehandlingsanlæg (sandfilter), Mek/EL | B125: PE | C125: 20 | E125: 0
A126: Efterbehandlingsanlæg (sandfilter), SRO | B126: PE | C126: 10 | E126: 0
A127: Renseanlæg >= 5.000 PE, Slambehandling
A128: Forafvanding, slam, Konstruktion | B128: PE | C128: 60 | E128: 0
A129: Forafvanding, slam, Mek/EL | B129: PE | C129: 20 | E129: 0
A130: Forafvanding, slam, SRO | B130: PE | C130: 10 | E130: 0
A131: Rådnetanke, slam, Konstruktioner | B131: PE | C131: 60 | E131: 0
A132: Rådnetanke, slam, Mek/EL | B132: PE | C132: 20 | E132: 0
A133: Rådnetanke, slam, SRO | B133: PE | C133: 10 | E133: 0
A134: Gasdisponering, Konstruktioner | B134: PE | C134: 60 | E134: 0
A135: Gasdisponering, Mek/EL | B135: PE | C135: 20 | E135: 0
A136: Gasdisponering, SRO | B136: PE | C136: 10 | E136: 0
A137: Gasdisponering - elproduktionsanlæg, Konstruktioner | B137: PE | C137: 60 | E137: 0
A138: Gasdisponering - elproduktionsanlæg, Mek/EL | B138: PE | C138: 20 | E138: 0
A139: Gasdisponering - elproduktionsanlæg, SRO | B139: PE | C139: 10 | E139: 0
A140: Slutafvanding, slam - lavteknologisk (slambede), Konstruktioner | B140: PE | C140: 60 | E140: 0
A141: Slutafvanding, slam - lavteknologisk (slambede), Mek/EL | B141: PE | C141: 20 | E141: 0
A142: Slutafvanding, slam - lavteknologisk (slambede), SRO | B142: PE | C142: 10 | E142: 0
A143: Slutafvanding, slam - højteknologisk (centrifuger), Konstruktioner | B143: PE | C143: 60 | E143: 0
A144: Slutafvanding, slam - højteknologisk (centrifuger), Mek/El | B144: PE | C144: 20 | E144: 0
A145: Slutafvanding, slam - højteknologisk (centrifuger), SRO | B145: PE | C145: 10 | E145: 0
A146: Renseanlæg >= 5.000 PE, Slamdisponering
A147: Slutdisponering, slam - lavteknologisk (slammineralisering), Konstruktioner | B147: PE | C147: 60 | E147: 0
A148: Slutdisponering, slam - lavteknologisk (slammineralisering), Mek/EL | B148: PE | C148: 20 | E148: 0
A149: Slutdisponering, slam - lavteknologisk (slammineralisering), SRO | B149: PE | C149: 10 | E149: 0
A150: Slutdisponering, slam - højteknologisk (slamtørring), Konstruktioner | B150: PE | C150: 60 | E150: 0
A151: Slutdisponering, slam - højteknologisk (slamtørring), Mek/EL | B151: PE | C151: 20 | E151: 0
A152: Slutdisponering, slam - højteknologisk (slamtørring), SRO | B152: PE | C152: 10 | E152: 0
A153: Slutdisponering, slam - højteknologisk (slamtørring og -forbrænding), Konstruktioner | B153: PE | C153: 60 | E153: 0
A154: Slutdisponering, slam - højteknologisk (slamtørring og -forbrænding), Mek/EL | B154: PE | C154: 20 | E154: 0
A155: Slutdisponering, slam - højteknologisk (slamtørring og -forbrænding), SRO | B155: PE | C155: 10 | E155: 0
A156: Renseanlæg 4
A157: Mindre renseanlæg
A158: Mindre renseanlæg < 5.000 PE uden mulighed for opdeling | B158: PE | C158: 40 | E158: 0
A159: Renseanlæg >= 5.000 PE, Vandbehandling
A160: Indløb med riste, Konstruktioner | B160: PE | C160: 60 | E160: 14293 | F160: Tørring
A161: Indløb med riste, Mek/EL | B161: PE | C161: 20 | E161: 14293
A162: Indløb med riste, SRO | B162: PE | C162: 10 | E162: 14293
A163: Sand- og fedtfang, Kontruktioner | B163: PE | C163: 60 | E163: 14293
A164: Sand- og fedtfang, Mek/EL | B164: PE | C164: 20 | E164: 14293
A165: Sand- og fedtfang, SRO | B165: PE | C165: 10 | E165: 14293
A166: Forklaring, Konstruktioner | B166: PE | C166: 60 | E166: 0
A167: Forklaring, Mek/EL | B167: PE | C167: 20 | E167: 0
A168: Forklaring, SRO | B168: PE | C168: 10 | E168: 0
A169: Beluftningstanke, Konstruktioner | B169: PE | C169: 60 | E169: 14293
A170: Beluftningstanke, Mek/EL | B170: PE | C170: 20 | E170: 14293
A171: Beluftningstanke, SRO | B171: PE | C171: 10 | E171: 14293
A172: Efterklaringstanke, Konstruktioner | B172: PE | C172: 60 | E172: 14293
A173: Efterklaringstanke, Mek/El | B173: PE | C173: 20 | E173: 14293
A174: Efterklaringstanke, SRO | B174: PE | C174: 10 | E174: 14293
A175: Efterbehandlingsanlæg (sandfilter), Konstruktioner | B175: PE | C175: 60 | E175: 0
A176: Efterbehandlingsanlæg (sandfilter), Mek/EL | B176: PE | C176: 20 | E176: 0
A177: Efterbehandlingsanlæg (sandfilter), SRO | B177: PE | C177: 10 | E177: 0
A178: Renseanlæg >= 5.000 PE, Slambehandling
A179: Forafvanding, slam, Konstruktion | B179: PE | C179: 60 | E179: 0
A180: Forafvanding, slam, Mek/EL | B180: PE | C180: 20 | E180: 0
A181: Forafvanding, slam, SRO | B181: PE | C181: 10 | E181: 0
A182: Rådnetanke, slam, Konstruktioner | B182: PE | C182: 60 | E182: 0
A183: Rådnetanke, slam, Mek/EL | B183: PE | C183: 20 | E183: 0
A184: Rådnetanke, slam, SRO | B184: PE | C184: 10 | E184: 0
A185: Gasdisponering, Konstruktioner | B185: PE | C185: 60 | E185: 0
A186: Gasdisponering, Mek/EL | B186: PE | C186: 20 | E186: 0
A187: Gasdisponering, SRO | B187: PE | C187: 10 | E187: 0
A188: Gasdisponering - elproduktionsanlæg, Konstruktioner | B188: PE | C188: 60 | E188: 0
A189: Gasdisponering - elproduktionsanlæg, Mek/EL | B189: PE | C189: 20 | E189: 0
A190: Gasdisponering - elproduktionsanlæg, SRO | B190: PE | C190: 10 | E190: 0
A191: Slutafvanding, slam - lavteknologisk (slambede), Konstruktioner | B191: PE | C191: 60 | E191: 14293
A192: Slutafvanding, slam - lavteknologisk (slambede), Mek/EL | B192: PE | C192: 20 | E192: 14293
A193: Slutafvanding, slam - lavteknologisk (slambede), SRO | B193: PE | C193: 10 | E193: 14293
A194: Slutafvanding, slam - højteknologisk (centrifuger), Konstruktioner | B194: PE | C194: 60 | E194: 14293
A195: Slutafvanding, slam - højteknologisk (centrifuger), Mek/El | B195: PE | C195: 20 | E195: 14293
A196: Slutafvanding, slam - højteknologisk (centrifuger), SRO | B196: PE | C196: 10 | E196: 14293
A197: Renseanlæg >= 5.000 PE, Slamdisponering
A198: Slutdisponering, slam - lavteknologisk (slammineralisering), Konstruktioner | B198: PE | C198: 60 | E198: 0
A199: Slutdisponering, slam - lavteknologisk (slammineralisering), Mek/EL | B199: PE | C199: 20 | E199: 0
A200: Slutdisponering, slam - lavteknologisk (slammineralisering), SRO | B200: PE | C200: 10 | E200: 0
A201: Slutdisponering, slam - højteknologisk (slamtørring), Konstruktioner | B201: PE | C201: 60 | E201: 0
... 361 more rows

Sheet Distributionsanlæg
A1: Distributionsanlæg | B1: Enhed | C1: Standard-levetid | D1: Samlet mængde per 31/12-2014 | E1: Samlet mængde per 31/12-2015 | F1: Bemærk-ninger
A3: Ledningsnet - Land
A4: Ledningsnet ≤ Ø 200 mm | B4: meter | C4: 75 | E4: =284043+37772.33-5+9603.57 -> 331413.9
A5: Ø 200 mm < Ledningsnet ≤ Ø 500 mm | B5: meter | C5: 75 | E5: =114657+7891.42-0 -> 122548.42
A6: Ø 500 mm < Ledningsnet ≤ Ø 800 mm | B6: meter | C6: 75 | E6: =19607+46.07-0 -> 19653.07
A7: Ø 800 mm < Ledningsnet ≤ Ø 1000 mm | B7: meter | C7: 75 | E7: =2616+0-0 -> 2616
A8: Ø 1000 mm < Ledningsnet ≤ Ø 1200 mm | B8: meter | C8: 75 | E8: =646+141.24-0 -> 787.24
A9: Ø 1200 mm < Ledningsnet ≤ Ø 1600 mm | B9: meter | C9: 75 | E9: =794+0-0 -> 794
A10: Ledningsnet > Ø 1600 mm (rørbassiner og transportledninger) | B10: meter | C10: 75 | E10: =0+8-0 -> 8
A11: Strømpeforing ≤ Ø 200 mm | B11: meter | C11: 50 | E11: =0+0-0 -> 0
A12: Strømpeforing Ø 200 mm < Ledningsnet ≤ Ø 500 mm | B12: meter | C12: 50 | E12: =0+0-0 -> 0
A13: Strømpeforing Ø 500 mm < Ledningsnet ≤ Ø 800 mm | B13: meter | C13: 50 | E13: 0
A14: Strømpeforing Ø 800 mm < Ledningsnet ≤ Ø 1000 mm | B14: meter | C14: 50 | E14: 0
A15: Strømpeforing Ø 1000 mm < Ledningsnet ≤ Ø 1200 mm | B15: meter | C15: 50 | E15: 0
A16: Strømpeforing Ø 1200 mm < Ledningsnet ≤ Ø 1600 mm | B16: meter | C16: 50 | E16: 0
A17: Ledningsnet - By
A18: Ledningsnet ≤ Ø 200 mm | B18: meter | C18: 75 | E18: =253659+17146.39-1289.23+3860.13 -> 273376.29
A19: Ø 200 mm < Ledningsnet ≤ Ø 500 mm | B19: meter | C19: 75 | E19: =127874+7727.51-0+2762.9 -> 138364.41
A20: Ø 500 mm < Ledningsnet ≤ Ø 800 mm | B20: meter | C20: 75 | E20: =24543+999.93-0+361.03 -> 25903.96
A21: Ø 800 mm < Ledningsnet ≤ Ø 1000 mm | B21: meter | C21: 75 | E21: =5039+179.14-0 -> 5218.14
A22: Ø 1000 mm < Ledningsnet ≤ Ø 1200 mm | B22: meter | C22: 75 | E22: =1518+45.23-0 -> 1563.23
A23: Ø 1200 mm < Ledningsnet ≤ Ø 1600 mm | B23: meter | C23: 75 | E23: =1578+43.93-0+756.15 -> 2378.08
A24: Ledningsnet > Ø 1600 mm (rørbassiner og transportledninger) | B24: meter | C24: 75 | E24: =0+0-0 -> 0
A25: Strømpeforing ≤ Ø 200 mm | B25: meter | C25: 50 | E25: =0+2289.31-0+3 -> 2292.31
A26: Strømpeforing Ø 200 mm < Ledningsnet ≤ Ø 500 mm | B26: meter | C26: 50 | E26: =0+1473.07-0+1.99 -> 1475.06
A27: Strømpeforing Ø 500 mm < Ledningsnet ≤ Ø 800 mm | B27: meter | C27: 50 | E27: =0+778.59-0 -> 778.59
A28: Strømpeforing Ø 800 mm < Ledningsnet ≤ Ø 1000 mm | B28: meter | C28: 50 | E28: =0+0-0 -> 0
A29: Strømpeforing Ø 1000 mm < Ledningsnet ≤ Ø 1200 mm | B29: meter | C29: 50 | E29: =0+56.74-0 -> 56.74
A30: Strømpeforing Ø 1200 mm < Ledningsnet ≤ Ø 1600 mm | B30: meter | C30: 50 | E30: =0+0-0 -> 0
A31: Ledningsnet - City
A32: Ledningsnet ≤ Ø 200 mm | B32: meter | C32: 75 | E32: =238+0-0 -> 238
A33: Ø 200 mm < Ledningsnet ≤ Ø 500 mm | B33: meter | C33: 75 | E33: =53+0-0 -> 53
A34: Ø 500 mm < Ledningsnet ≤ Ø 800 mm | B34: meter | C34: 75 | E34: =0+0-0 -> 0
A35: Ø 800 mm < Ledningsnet ≤ Ø 1000 mm | B35: meter | C35: 75 | E35: =102+0-0 -> 102
A36: Ø 1000 mm < Ledningsnet ≤ Ø 1200 mm | B36: meter | C36: 75 | E36: =0+0-0 -> 0
A37: Ø 1200 mm < Ledningsnet ≤ Ø 1600 mm | B37: meter | C37: 75 | E37: =0+0-0 -> 0
A38: Ledningsnet > Ø 1600 mm (rørbassiner og transportledninger) | B38: meter | C38: 75 | E38: 0
A39: Strømpeforing ≤ Ø 200 mm | B39: meter | C39: 50 | E39: 0
A40: Strømpeforing Ø 200 mm < Ledningsnet ≤ Ø 500 mm | B40: meter | C40: 50 | E40: 0
A41: Strømpeforing Ø 500 mm < Ledningsnet ≤ Ø 800 mm | B41: meter | C41: 50 | E41: 0
A42: Strømpeforing Ø 800 mm < Ledningsnet ≤ Ø 1000 mm | B42: meter | C42: 50 | E42: 0
A43: Strømpeforing Ø 1000 mm < Ledningsnet ≤ Ø 1200 mm | B43: meter | C43: 50 | E43: 0
A44: Strømpeforing Ø 1200 mm < Ledningsnet ≤ Ø 1600 mm | B44: meter | C44: 50 | E44: 0
A45: Ledningsnet - Indre city
A46: Ledningsnet ≤ Ø 200 mm | B46: meter | C46: 75 | E46: =0 -> 0
A47: Ø 200 mm < Ledningsnet ≤ Ø 500 mm | B47: meter | C47: 75 | E47: =0 -> 0
A48: Ø 500 mm < Ledningsnet ≤ Ø 800 mm | B48: meter | C48: 75 | E48: =0 -> 0
A49: Ø 800 mm < Ledningsnet ≤ Ø 1000 mm | B49: meter | C49: 75 | E49: =0 -> 0
A50: Ø 1000 mm < Ledningsnet ≤ Ø 1200 mm | B50: meter | C50: 75 | E50: =0 -> 0
A51: Ø 1200 mm < Ledningsnet ≤ Ø 1600 mm | B51: meter | C51: 75 | E51: =0 -> 0
A52: Ledningsnet > Ø 1600 mm (rørbassiner og transportledninger) | B52: meter | C52: 75 | E52: 0
A53: Strømpeforing ≤ Ø 200 mm | B53: meter | C53: 50 | E53: 0
A54: Strømpeforing Ø 200 mm < Ledningsnet ≤ Ø 500 mm | B54: meter | C54: 50 | E54: 0
A55: Strømpeforing Ø 500 mm < Ledningsnet ≤ Ø 800 mm | B55: meter | C55: 50 | E55: 0
A56: Strømpeforing Ø 800 mm < Ledningsnet ≤ Ø 1000 mm | B56: meter | C56: 50 | E56: 0
A57: Strømpeforing Ø 1000 mm < Ledningsnet ≤ Ø 1200 mm | B57: meter | C57: 50 | E57: 0
A58: Strømpeforing Ø 1200 mm < Ledningsnet ≤ Ø 1600 mm | B58: meter | C58: 50 | E58: 0
A59: Brønde og stik, ledningsnet - Land
A60: Brønde | B60: stk. | C60: 75 | E60: =5912+163-0+1 -> 6076
A61: Stik | B61: stk. | C61: 75 | E61: =10112+0-0 -> 10112
A62: Brønde og stik, ledningsnet - By
A63: Brønde | B63: stk. | C63: 75 | E63: =8557+725-393+150 -> 9039
A64: Stik | B64: stk. | C64: 75 | E64: =14103+78-0 -> 14181
A65: Brønde og stik, ledningsnet - City
A66: Brønde | B66: stk. | C66: 75 | E66: =7+14-0 -> 21
A67: Stik | B67: stk. | C67: 75 | E67: =14+0-0 -> 14
A68: Brønde og stik, ledningsnet - Indre city
A69: Brønde | B69: stk. | C69: 75
A70: Stik | B70: stk. | C70: 75
A71: Små pumpestationer inkl. SRO-anlæg - Land
A72: Tryksatte minipumpestationer (husstandssystemer) | B72: stk. | C72: 30 | E72: 352
A73: Pumpestationer i brønde (< 6,25 m2), Konstruktioner | B73: stk. | C73: 50 | E73: 46
A74: Pumpestationer i brønde (< 6,25 m2), Mek/EL | B74: stk. | C74: 20 | E74: 46
A75: Pumpestationer i brønde (< 6,25 m2), SRO | B75: stk. | C75: 10 | E75: 46
A76: Pumpestationer m. overbygning (< 20 m2), Konstruktioner | B76: stk. | C76: 50 | E76: 0
A77: Pumpestationer m. overbygning (< 20 m2), Mek/EL | B77: stk. | C77: 20 | E77: 0
A78: Pumpestationer m. overbygning (< 20 m2), SRO | B78: stk. | C78: 10 | E78: 0
A79: Pumpestationer i underjordiske bygværker (<50 m2), Konstruktioner | B79: stk. | C79: 50 | E79: 6
A80: Pumpestationer i underjordiske bygværker (<50 m2), Mek/El | B80: stk. | C80: 20 | E80: 6
A81: Pumpestationer i underjordiske bygværker (<50 m2), SRO | B81: stk. | C81: 10 | E81: 6
A82: Små pumpestationer inkl. SRO-anlæg - By
A83: Tryksatte minipumpestationer (husstandssystemer) | B83: stk. | C83: 30 | E83: 0
A84: Pumpestationer i brønde (< 6,25 m2), Konstruktioner | B84: stk. | C84: 50 | E84: 41
A85: Pumpestationer i brønde (< 6,25 m2), Mek/EL | B85: stk. | C85: 20 | E85: 41
A86: Pumpestationer i brønde (< 6,25 m2), SRO | B86: stk. | C86: 10 | E86: 41
A87: Pumpestationer m. overbygning (< 20 m2), Konstruktioner | B87: stk. | C87: 50 | E87: =5+1 -> 6
A88: Pumpestationer m. overbygning (< 20 m2), Mek/EL | B88: stk. | C88: 20 | E88: =5+2 -> 7
A89: Pumpestationer m. overbygning (< 20 m2), SRO | B89: stk. | C89: 10 | E89: =5+2 -> 7
A90: Pumpestationer i underjordiske bygværker (<50 m2), Konstruktioner | B90: stk. | C90: 50 | E90: 4
A91: Pumpestationer i underjordiske bygværker (<50 m2), Mek/El | B91: stk. | C91: 20 | E91: =4+2 -> 6
A92: Pumpestationer i underjordiske bygværker (<50 m2), SRO | B92: stk. | C92: 10 | E92: 4
A93: Små pumpestationer inkl. SRO-anlæg - City
A94: Tryksatte minipumpestationer (husstandssystemer) | B94: stk. | C94: 30 | E94: 0
A95: Pumpestationer i brønde (< 6,25 m2), Konstruktioner | B95: stk. | C95: 50 | E95: 0
A96: Pumpestationer i brønde (< 6,25 m2), Mek/EL | B96: stk. | C96: 20 | E96: 0
A97: Pumpestationer i brønde (< 6,25 m2), SRO | B97: stk. | C97: 10 | E97: 0
A98: Pumpestationer m. overbygning (< 20 m2), Konstruktioner | B98: stk. | C98: 50 | E98: 0
A99: Pumpestationer m. overbygning (< 20 m2), Mek/EL | B99: stk. | C99: 20 | E99: 0
A100: Pumpestationer m. overbygning (< 20 m2), SRO | B100: stk. | C100: 10 | E100: 0
A101: Pumpestationer i underjordiske bygværker (<50 m2), Konstruktioner | B101: stk. | C101: 50 | E101: 0
A102: Pumpestationer i underjordiske bygværker (<50 m2), Mek/El | B102: stk. | C102: 20 | E102: 0
A103: Pumpestationer i underjordiske bygværker (<50 m2), SRO | B103: stk. | C103: 10 | E103: 0
A104: Små pumpestationer inkl. SRO-anlæg - Indre city
A105: Tryksatte minipumpestationer (husstandssystemer) | B105: stk. | C105: 30 | E105: 0
A106: Pumpestationer i brønde (< 6,25 m2), Konstruktioner | B106: stk. | C106: 50 | E106: 0
A107: Pumpestationer i brønde (< 6,25 m2), Mek/EL | B107: stk. | C107: 20 | E107: 0
A108: Pumpestationer i brønde (< 6,25 m2), SRO | B108: stk. | C108: 10 | E108: 0
A109: Pumpestationer m. overbygning (< 20 m2), Konstruktioner | B109: stk. | C109: 50 | E109: 0
A110: Pumpestationer m. overbygning (< 20 m2), Mek/EL | B110: stk. | C110: 20 | E110: 0
A111: Pumpestationer m. overbygning (< 20 m2), SRO | B111: stk. | C111: 10 | E111: 0
A112: Pumpestationer i underjordiske bygværker (<50 m2), Konstruktioner | B112: stk. | C112: 50 | E112: 0
A113: Pumpestationer i underjordiske bygværker (<50 m2), Mek/El | B113: stk. | C113: 20 | E113: 0
A114: Pumpestationer i underjordiske bygværker (<50 m2), SRO | B114: stk. | C114: 10 | E114: 0
A115: Store pumpestationer: inkl. SRO-anlæg - Land
A116: Kælder | B116: m2 | C116: 75 | E116: 213.64
A117: Pumpeinstallation Miljøklasse A (100-300 l/s) - Mek/EL | B117: stk. | C117: 20 | E117: 51
A118: Pumpeinstallation Miljøklasse A (100-300 l/s) - SRO | B118: stk. | C118: 10 | E118: 51
A119: Pumpeinstallation Miljøklasse A (300-600 l/s) - Mek/EL | B119: stk. | C119: 20 | E119: 18
A120: Pumpeinstallation Miljøklasse A (300-600 l/s) - SRO | B120: stk. | C120: 10 | E120: 18
A121: Pumpeinstallation Miljøklasse A (600-1.000 l/s) - Mek/EL | B121: stk. | C121: 20 | E121: 0
A122: Pumpeinstallation Miljøklasse A (600-1.000 l/s) - SRO | B122: stk. | C122: 10 | E122: 0
A123: Pumpeinstallation Miljøklasse A (1.000-1.500 l/s) - Mek/EL | B123: stk. | C123: 20 | E123: 1
A124: Pumpeinstallation Miljøklasse A (1.000-1.500 l/s) - SRO | B124: stk. | C124: 10 | E124: 1
A125: Pumpeinstallation Miljøklasse B (100-300 l/s) - Mek/EL | B125: stk. | C125: 20 | E125: 0
A126: Pumpeinstallation Miljøklasse B (100-300 l/s) - SRO | B126: stk. | C126: 10 | E126: 0
A127: Pumpeinstallation Miljøklasse B (300-600 l/s) - Mek/EL | B127: stk. | C127: 20 | E127: 0
A128: Pumpeinstallation Miljøklasse B (300-600 l/s) - SRO | B128: stk. | C128: 10 | E128: 0
A129: Pumpeinstallation Miljøklasse B (600-1.000 l/s) - Mek/EL | B129: stk. | C129: 20 | E129: 0
A130: Pumpeinstallation Miljøklasse B (600-1.000 l/s) - SRO | B130: stk. | C130: 10 | E130: 0
A131: Pumpeinstallation Miljøklasse B (1.000-1.500 l/s) - Mek/EL | B131: stk. | C131: 20 | E131: 0
A132: Pumpeinstallation Miljøklasse B (1.000-1.500 l/s) - SRO | B132: stk. | C132: 10 | E132: 0
A133: Overbygning | B133: m2 | C133: 75 | E133: 0
A134: Store pumpestationer: inkl. SRO-anlæg - By
A135: Kælder | B135: m2 | C135: 75 | E135: 0
A136: Pumpeinstallation Miljøklasse A (100-300 l/s) - Mek/EL | B136: stk. | C136: 20 | E136: 40
A137: Pumpeinstallation Miljøklasse A (100-300 l/s) - SRO | B137: stk. | C137: 10 | E137: 40
A138: Pumpeinstallation Miljøklasse A (300-600 l/s) - Mek/EL | B138: stk. | C138: 20 | E138: 12
A139: Pumpeinstallation Miljøklasse A (300-600 l/s) - SRO | B139: stk. | C139: 10 | E139: 12
A140: Pumpeinstallation Miljøklasse A (600-1.000 l/s) - Mek/EL | B140: stk. | C140: 20 | E140: 3
A141: Pumpeinstallation Miljøklasse A (600-1.000 l/s) - SRO | B141: stk. | C141: 10 | E141: 3
A142: Pumpeinstallation Miljøklasse A (1.000-1.500 l/s) - Mek/EL | B142: stk. | C142: 20 | E142: 3
A143: Pumpeinstallation Miljøklasse A (1.000-1.500 l/s) - SRO | B143: stk. | C143: 10 | E143: 3
A144: Pumpeinstallation Miljøklasse B (100-300 l/s) - Mek/EL | B144: stk. | C144: 20 | E144: 0
A145: Pumpeinstallation Miljøklasse B (100-300 l/s) - SRO | B145: stk. | C145: 10 | E145: 0
A146: Pumpeinstallation Miljøklasse B (300-600 l/s) - Mek/EL | B146: stk. | C146: 20 | E146: 0
A147: Pumpeinstallation Miljøklasse B (300-600 l/s) - SRO | B147: stk. | C147: 10 | E147: 0
A148: Pumpeinstallation Miljøklasse B (600-1.000 l/s) - Mek/EL | B148: stk. | C148: 20 | E148: 0
A149: Pumpeinstallation Miljøklasse B (600-1.000 l/s) - SRO | B149: stk. | C149: 10 | E149: 0
A150: Pumpeinstallation Miljøklasse B (1.000-1.500 l/s) - Mek/EL | B150: stk. | C150: 20 | E150: 0
A151: Pumpeinstallation Miljøklasse B (1.000-1.500 l/s) - SRO | B151: stk. | C151: 10 | E151: 0
A152: Overbygning | B152: m2 | C152: 75 | E152: 0
A153: Store pumpestationer: inkl. SRO-anlæg - City
A154: Kælder | B154: m2 | C154: 75 | E154: 0
A155: Pumpeinstallation Miljøklasse A (100-300 l/s) - Mek/EL | B155: stk. | C155: 20 | E155: 0
A156: Pumpeinstallation Miljøklasse A (100-300 l/s) - SRO | B156: stk. | C156: 10 | E156: 0
A157: Pumpeinstallation Miljøklasse A (300-600 l/s) - Mek/EL | B157: stk. | C157: 20 | E157: 0
A158: Pumpeinstallation Miljøklasse A (300-600 l/s) - SRO | B158: stk. | C158: 10 | E158: 0
A159: Pumpeinstallation Miljøklasse A (600-1.000 l/s) - Mek/EL | B159: stk. | C159: 20 | E159: 0
A160: Pumpeinstallation Miljøklasse A (600-1.000 l/s) - SRO | B160: stk. | C160: 10 | E160: 0
A161: Pumpeinstallation Miljøklasse A (1.000-1.500 l/s) - Mek/EL | B161: stk. | C161: 20 | E161: 0
A162: Pumpeinstallation Miljøklasse A (1.000-1.500 l/s) - SRO | B162: stk. | C162: 10 | E162: 0
A163: Pumpeinstallation Miljøklasse B (100-300 l/s) - Mek/EL | B163: stk. | C163: 20 | E163: 0
A164: Pumpeinstallation Miljøklasse B (100-300 l/s) - SRO | B164: stk. | C164: 10 | E164: 0
A165: Pumpeinstallation Miljøklasse B (300-600 l/s) - Mek/EL | B165: stk. | C165: 20 | E165: 0
A166: Pumpeinstallation Miljøklasse B (300-600 l/s) - SRO | B166: stk. | C166: 10 | E166: 0
A167: Pumpeinstallation Miljøklasse B (600-1.000 l/s) - Mek/EL | B167: stk. | C167: 20 | E167: 0
A168: Pumpeinstallation Miljøklasse B (600-1.000 l/s) - SRO | B168: stk. | C168: 10 | E168: 0
A169: Pumpeinstallation Miljøklasse B (1.000-1.500 l/s) - Mek/EL | B169: stk. | C169: 20 | E169: 0
A170: Pumpeinstallation Miljøklasse B (1.000-1.500 l/s) - SRO | B170: stk. | C170: 10 | E170: 0
A171: Overbygning | B171: m2 | C171: 75 | E171: 0
A172: Store pumpestationer: inkl. SRO-anlæg - Indre city
A173: Kælder | B173: m2 | C173: 75 | E173: 0
A174: Pumpeinstallation Miljøklasse A (100-300 l/s) - Mek/EL | B174: stk. | C174: 20 | E174: 0
A175: Pumpeinstallation Miljøklasse A (100-300 l/s) - SRO | B175: stk. | C175: 10 | E175: 0
A176: Pumpeinstallation Miljøklasse A (300-600 l/s) - Mek/EL | B176: stk. | C176: 20 | E176: 0
A177: Pumpeinstallation Miljøklasse A (300-600 l/s) - SRO | B177: stk. | C177: 10 | E177: 0
A178: Pumpeinstallation Miljøklasse A (600-1.000 l/s) - Mek/EL | B178: stk. | C178: 20 | E178: 0
A179: Pumpeinstallation Miljøklasse A (600-1.000 l/s) - SRO | B179: stk. | C179: 10 | E179: 0
A180: Pumpeinstallation Miljøklasse A (1.000-1.500 l/s) - Mek/EL | B180: stk. | C180: 20 | E180: 0
A181: Pumpeinstallation Miljøklasse A (1.000-1.500 l/s) - SRO | B181: stk. | C181: 10 | E181: 0
A182: Pumpeinstallation Miljøklasse B (100-300 l/s) - Mek/EL | B182: stk. | C182: 20 | E182: 0
A183: Pumpeinstallation Miljøklasse B (100-300 l/s) - SRO | B183: stk. | C183: 10 | E183: 0
A184: Pumpeinstallation Miljøklasse B (300-600 l/s) - Mek/EL | B184: stk. | C184: 20 | E184: 0
A185: Pumpeinstallation Miljøklasse B (300-600 l/s) - SRO | B185: stk. | C185: 10 | E185: 0
A186: Pumpeinstallation Miljøklasse B (600-1.000 l/s) - Mek/EL | B186: stk. | C186: 20 | E186: 0
A187: Pumpeinstallation Miljøklasse B (600-1.000 l/s) - SRO | B187: stk. | C187: 10 | E187: 0
A188: Pumpeinstallation Miljøklasse B (1.000-1.500 l/s) - Mek/EL | B188: stk. | C188: 20 | E188: 0
A189: Pumpeinstallation Miljøklasse B (1.000-1.500 l/s) - SRO | B189: stk. | C189: 10 | E189: 0
A190: Overbygning | B190: m2 | C190: 75 | E190: 0
A191: Overløbsbygværker - Land
A192: Kælder (< 7 m2) | B192: stk. | C192: 75 | E192: 0
A193: Kælder (7 - 20 m2) | B193: m2 | C193: 75 | E193: 0
A194: Kælder (20 - 30 m2) | B194: m2 | C194: 75 | E194: 0
A195: Installationer "ingen eller faste riste" (mindre end 7 m2) | B195: stk. | C195: 20 | E195: =0+1 -> 1
A196: Installationer "mekaniske riste og SRO" Miljøklasse A. (7-20 m2) - Mek/EL | B196: stk. | C196: 20 | E196: 12
A197: Installationer "mekaniske riste og SRO" Miljøklasse A. (7-20 m2) - SRO | B197: stk. | C197: 10 | E197: 8
A198: Installationer "mekaniske riste og SRO" Miljøklasse A. (20-30 m2) - Mek/EL | B198: stk. | C198: 20 | E198: 1
A199: Installationer "mekaniske riste og SRO" Miljøklasse A. (20-30 m2) - SRO | B199: stk. | C199: 10 | E199: 1
A200: Installationer "mekaniske riste og SRO" Miljøklasse B. (7-20 m2) - Mek/EL | B200: stk. | C200: 20 | E200: 0
A201: Installationer "mekaniske riste og SRO" Miljøklasse B. (7-20 m2) - SRO | B201: stk. | C201: 10 | E201: 0
... 121 more rows

Sheet Fællesfunktionsanlæg
A1: Fællesfunktionsanlæg | B1: Enhed | C1: Standard-levetid | D1: Samlet mængde per 31/12-2015 | E1: Bemærk-ninger
A4: Andre
A5: Administrationbygninger | B5: m2 | C5: 75 | D5: 0
A6: Arbejdsplads og kontor | B6: stk. | C6: 5 | D6: 9
A7: Køretøjer, personbil | B7: stk. | C7: 5 | D7: 4
A8: Køretøjer, små lastvogne (< 3.500 kg.) | B8: stk. | C8: 5 | D8: 6
A9: Køretøjer, store lastvogne (> 3.500 kg.) | B9: stk. | C9: 5 | D9: 0
A10: Køretøjer, entreprenørmaskiner | B10: stk. | C10: 5 | D10: 9
A11: Slamsugere | B11: stk. | C11: 5 | D11: 0
A12: Værksteder, garager | B12: m2 | C12: 75 | D12: 985
A13: Øvrige
A14: Solcelleanlæg | B14: KWh | C14: 25 | D14: 0
A15: EDB, tablets og navigationsudstyr | B15: stk. | C15: 5 | D15: 0
A16: Elektroniske kort | B16: stk. | C16: 5 | D16: 0

Sheet Drop downliste (hidden)
B2: datakvalitet | C2: Serviceselskab | D2: Overheads | E2: Infrastrukturomlægninger | F2: Infrastruktur per år | G2: år 1 | H2: år 2 | I2: år 3 | J2: år 4 | K2: år 5
G3: 2010 | H3: 2011 | I3: 2012 | J3: 2013 | K3: 2014
B4: 1 | C4: ja | D4: Full-cost | E4: ja | F4: 0.1
B5: 2 | C5: nej | D5: Direct-cost | E5: nej | F5: 0.2
B6: 3 | D6: Nøgletalsfordeling | F6: 0.3
D7: Activity based cost | F7: 0.4
D8: Andet | F8: 0.5
F9: 0.6
F10: 0.7
F11: 0.8
F12: 0.9
F13: 1
